bitfinex-derivatives/quotes_SOLF0:USTF0_20251101
["timestamp","ask_amount","ask_price","bid_price","bid_amount"]
[1762033535315,2.91,185.99,185.93,2.82]
[1762033535515,2.91,185.99,185.95,2.82]
[1762033535816,2.91,185.99,185.96,8.11660342]
[1762033536010,2.91,185.99,185.96,2.82]
[1762033544214,2.83,186.03,185.96,2.82]
[1762033544415,2.83,186.03,185.98,2.88]
[1762033548720,2.83,186.03,185.95,4.8417]
[1762033548721,2.83,186.03,186.0,2.88]
[1762033551618,2.83,186.03,186.01,11.63401601]
[1762033551923,2.83,186.03,186.02,6.10181069]
[1762033552328,4.8398,186.04,186.02,8.98181069]
[1762033552626,7.6698,186.04,186.03,12.38666787]
[1762033554824,2.83,186.04,186.03,12.38666787]
[1762033557429,2.83,186.05,186.03,15.26666787]
[1762033557629,2.83,186.05,186.04,12.38666787]
[1762033557925,2.83,186.05,186.04,17.42435194]
[1762033558130,2.83,186.05,186.04,12.38666787]
[1762033560230,2.83,186.05,186.04,20.30435194]
[1762033560430,2.83,186.05,186.04,15.26666787]
[1762033562034,7.6691,186.06,186.04,15.26666787]
[1762033562234,7.6691,186.06,186.05,12.38666787]
[1762033568944,7.7897,186.04,186.0,2.88]
[1762033569145,7.7897,186.04,186.01,15.32880262]
[1762033569346,7.7897,186.04,186.02,12.48880262]
[1762033569639,7.7897,186.04,186.03,6.60967672]
[1762033569844,4.8397,186.04,186.03,9.44967672]
[1762033570045,7.7897,186.04,186.03,12.26062985]
[1762033570243,7.7897,186.04,186.03,6.60967672]
[1762033575055,2.95,186.06,186.03,9.44967672]
[1762033575257,0.26026657,186.06,186.05,5.0264491]
[1762033575555,0.26026657,186.06,186.05,12.1907793]
[1762033575756,4.8391,186.07,186.05,15.0307793]
[1762033575953,4.8391,186.07,186.06,5.58110258]
[1762033576445,4.8383,186.09,186.06,8.42110258]
[1762033576753,4.8383,186.09,186.07,5.58110258]
[1762033576954,4.8383,186.09,186.08,5.58110258]
[1762033577355,7.7883,186.09,186.08,5.58110258]
[1762033578643,229.18867004,186.11,186.08,5.58110258]
[1762033578845,232.13867004,186.11,186.09,5.58110258]
[1762033579059,232.13867004,186.11,186.1,5.58110258]
[1762033580456,2.95,186.1,186.08,2.84]
[1762033580652,229.18867004,186.11,186.09,5.10598204]
[1762033580846,229.18867004,186.11,186.1,5.10598204]
[1762033581246,229.18867004,186.11,186.09,2.84]
[1762033582954,232.01867004,186.11,186.09,2.84]
[1762033584652,229.18867004,186.11,186.09,2.84]
[1762033585850,232.01867004,186.11,186.09,2.84]
[1762033590053,156.09867004,186.11,186.09,2.84]
[1762033590249,4.15862632,186.1,186.09,2.84]
[1762033590848,6.98862632,186.1,186.09,2.84]
[1762033591050,2.83,186.09,186.02,2.87]
[1762033591355,2.83,186.09,186.0,9.84449939]
[1762033591356,4.8406,186.01,185.97,5.00389939]
[1762033591555,2.83,185.99,185.94,5.00389939]
[1762033591757,2.83,185.97,185.94,7.87389939]
[1762033591955,4.15862632,185.96,185.94,2.87]
[1762033592157,4.15716199,185.95,185.94,2.87]
[1762033596365,4.15716199,185.95,185.94,3.95]
[1762033596665,4.15716199,185.95,185.94,2.87]
[1762033597269,4.15789031,185.95,185.94,2.87]
[1762033600067,2.89,186.0,185.95,2.8]
[1762033600263,4.15753343,185.99,185.95,2.8]
[1762033600467,4.15753343,185.98,185.95,2.8]
[1762033600768,4.15753343,185.97,185.95,2.8]
[1762033600968,7.7299,186.03,185.95,2.8]
[1762033601168,4.15724052,186.02,185.95,2.8]
[1762033601468,4.15724052,186.01,185.96,2.8]
[1762033601659,4.15724052,186.0,185.96,2.8]
[1762033601859,4.15724052,185.99,185.96,2.8]
[1762033602059,4.15724052,185.98,185.96,2.8]
[1762033602263,2.89,186.03,185.96,2.8]
[1762033602469,4.15764521,186.02,185.96,2.8]
[1762033602657,4.15764521,186.01,185.96,2.8]
[1762033602862,4.15764521,186.0,185.96,2.8]
[1762033603162,4.15764521,185.99,185.96,2.8]
[1762033603362,3.25387339,186.04,185.98,2.8]
[1762033603562,4.15780215,186.03,186.0,2.8]
[1762033603768,4.15780215,186.02,186.0,2.8]
[1762033603969,4.15780215,186.01,186.0,2.8]
[1762033604164,4.15780215,186.01,186.0,7.47258723]
[1762033606870,7.04780215,186.01,185.97,2.8]
[1762033607169,7.04780215,186.01,185.95,5.00389939]
[1762033607170,4.15780215,186.0,185.98,7.47405459]
[1762033607372,4.15780215,185.99,185.98,2.8]
[1762033607566,4.15780215,185.99,185.98,7.47471902]
[1762033607872,107.52,186.18,185.99,2.8]
[1762033607873,2.89,186.08,185.99,2.8]
[1762033608179,7.05027843,186.07,186.01,2.8]
[1762033608471,7.05027843,186.06,186.02,7.47471902]
[1762033608662,4.16027843,186.05,186.02,2.8]
[1762033608862,4.16027843,186.04,186.02,2.8]
[1762033609063,4.16027843,186.03,186.02,2.8]
[1762033609262,4.16027843,186.03,186.02,7.47515602]
[1762033614166,4.16027843,186.03,186.02,2.8]
[1762033616373,4.16027843,186.03,186.02,7.20703632]
[1762033625382,7.05027843,186.03,186.02,4.40703632]
[1762033625888,4.16027843,186.03,186.02,7.20703632]
[1762033626589,4.15003477,186.03,186.02,7.20703632]
[1762033635795,2.89,186.06,186.02,7.20703632]
[1762033635992,6.86060216,186.05,186.03,7.15703632]
[1762033636195,4.15060216,186.04,186.03,2.75]
[1762033636490,4.15060216,186.04,186.03,7.08799576]
[1762033637201,6.86060216,186.04,186.03,4.33799576]
[1762033640391,4.15060216,186.04,186.03,7.08799576]
[1762033661518,6.97060216,186.04,186.03,4.33799576]
[1762033671234,2.82,186.03,185.98,5.00389939]
[1762033671434,2.82,186.01,185.99,4.27084061]
[1762033671626,4.15060216,186.0,185.98,2.75]
[1762033671827,4.15060216,185.99,185.98,2.75]
[1762033672028,4.15060216,185.99,185.98,7.02084131]
[1762033673932,6.97060216,185.99,185.98,7.02084131]
[1762033674139,6.97060216,185.99,185.98,4.27084131]
[1762033684345,7.01879677,185.99,185.98,4.27084131]
[1762033687350,2.95,185.98,185.95,2.75]
[1762033687550,7.14879677,185.97,185.96,4.24584511]
[1762033691850,7.14879677,185.97,185.95,2.75]
[1762033692052,4.19879677,185.96,185.95,2.75]
[1762033693044,4.19879677,185.96,185.95,6.9938716]
[1762033698855,4.19879677,185.96,185.95,4.2438716]
[1762033698856,7.14879677,185.96,185.95,4.2438716]
[1762033699855,7.14879677,185.96,185.95,4.24358132]
[1762033701750,2.86,185.95,185.93,2.73]
[1762033701957,7.05879677,185.94,185.93,2.73]
[1762033702150,7.05879677,185.94,185.93,6.97437772]
[1762033702353,7.05879677,185.94,185.93,4.24437772]
[1762033703758,2.86,185.93,185.87,14.36486668]
[1762033704059,2.86,185.91,185.88,4.24481671]
[1762033704263,4.19879677,185.9,185.89,4.24481671]
[1762033704764,7.05879677,185.9,185.89,4.24481671]
[1762033705463,7.05879677,185.9,185.87,12.28319449]
[1762033705664,4.19879677,185.89,185.88,4.24164984]
[1762033705961,4.19879677,185.89,185.88,7.18164984]
[1762033709170,4.19879677,185.89,185.88,2.94]
[1762033718177,7.14879677,185.89,185.88,2.94]
[1762033718386,2.95,185.88,185.87,9.34319449]
[1762033718674,7.14879677,185.88,185.87,9.34319449]
[1762033720373,7.14879677,185.88,185.87,12.14319449]
[1762033720880,7.14879677,185.88,185.87,9.34319449]
[1762033721384,7.14879677,185.88,185.87,12.14319449]
[1762033721385,4.19879677,185.88,185.87,12.14319449]
[1762033730685,7.14879677,185.88,185.87,9.34319449]
[1762033732389,7.14879677,185.88,185.87,12.14319449]
[1762033733081,7.14879677,185.88,185.87,9.34319449]
[1762033736288,8.22879677,185.88,185.87,9.34319449]
[1762033737700,8.22879677,185.88,185.87,9.449e-05]
[1762033739889,5.27879677,185.88,185.82,4.19937672]
[1762033740100,2.95,185.84,185.77,5.02167219]
[1762033740282,2.95,185.84,185.75,2.8]
[1762033740283,2.95,185.82,185.78,4.20094023]
[1762033740485,3.25493654,185.85,185.79,4.20094023]
[1762033740486,2.95,185.8,185.79,4.20094023]
[1762033740692,7.14879677,185.8,185.79,4.20094023]
[1762033741795,2.95,185.79,185.77,4.20094023]
[1762033742093,2.95,185.77,185.73,2.8]
[1762033742392,4.19879677,185.76,185.74,6.99915672]
[1762033742692,4.19879677,185.75,185.74,2.8]
[1762033742895,4.19879677,185.75,185.74,6.99918348]
[1762033743683,7.14879677,185.75,185.74,4.19918348]
[1762033744195,4.19879677,185.75,185.74,6.99918348]
[1762033744390,7.14879677,185.75,185.74,4.19918348]
[1762033744989,4.19879677,185.75,185.74,4.19918348]
[1762033746787,4.19879677,185.75,185.73,2.87]
[1762033746988,4.19879677,185.74,185.73,2.87]
[1762033747189,4.19879677,185.74,185.73,7.06649807]
[1762033747594,4.19879677,185.74,185.73,7.06558071]
[1762033748100,4.19879677,185.74,185.73,2.87]
[1762033748498,4.19879677,185.74,185.73,7.06558071]
[1762033748796,4.19879677,185.74,185.73,2.87]
[1762033749190,4.19879677,185.74,185.73,4.19558071]
[1762033749391,4.19879677,185.74,185.7,7.06558071]
[1762033749589,4.19879677,185.73,185.71,4.19558071]
[1762033749799,4.19879677,185.72,185.71,4.19558071]
[1762033750295,4.19879677,185.72,185.66,2.87]
[1762033750296,2.76,185.71,185.66,2.87]
[1762033750488,4.19879677,185.7,185.68,2.87]
[1762033750691,2.76,185.71,185.69,4.19172724]
[1762033750888,6.91303052,185.7,185.69,4.19172724]
[1762033751093,6.91303052,185.7,185.68,2.87]
[1762033751287,2.76,185.7,185.68,2.87]
[1762033751586,2.76,185.7,185.67,4.19172724]
[1762033751793,2.76,185.7,185.68,4.19172724]
[1762033752101,2.76,185.7,185.67,2.87]
[1762033752293,2.76,185.7,185.66,4.19172724]
[1762033752493,2.76,185.68,185.65,4.19172724]
[1762033752692,2.76,185.68,185.66,4.19172724]
[1762033752899,2.76,185.68,185.64,2.87]
[1762033752900,6.90841495,185.67,185.65,4.19172724]
[1762033753101,2.76,185.67,185.65,4.19172724]
[1762033753301,2.76,185.67,185.64,2.87]
[1762033753496,4.14448378,185.66,185.64,2.87]
[1762033753698,4.848,185.72,185.64,2.87]
[1762033753898,4.14529726,185.71,185.65,2.87]
[1762033754100,4.14529726,185.7,185.66,2.87]
[1762033754406,4.14529726,185.69,185.67,2.87]
[1762033754602,2.76,185.73,185.67,2.87]
[1762033754792,4.14307962,185.72,185.67,2.87]
[1762033754995,4.14307962,185.71,185.67,2.87]
[1762033755194,4.14307962,185.7,185.68,2.87]
[1762033755396,2.76,185.73,185.68,2.87]
[1762033755696,4.14143848,185.72,185.68,2.87]
[1762033755995,4.14143848,185.71,185.68,2.87]
[1762033756195,4.14143848,185.7,185.68,2.87]
[1762033756400,2.76,185.73,185.68,2.87]
[1762033756603,4.13993591,185.72,185.68,2.87]
[1762033756803,4.13993591,185.71,185.69,2.87]
[1762033757004,4.13993591,185.7,185.69,2.87]
[1762033757606,2.76,185.74,185.69,2.87]
[1762033757801,4.13862191,185.73,185.69,2.87]
[1762033758006,4.13862191,185.72,185.69,2.87]
[1762033758197,4.13862191,185.71,185.69,2.87]
[1762033758399,2.76,185.74,185.69,2.87]
[1762033758598,4.13783078,185.73,185.69,2.87]
[1762033758799,4.13783078,185.72,185.69,2.87]
[1762033759002,2.76,185.74,185.69,2.87]
[1762033759306,4.1378093,185.73,185.69,2.87]
[1762033759606,2.76,185.74,185.69,2.87]
[1762033759806,4.13743181,185.73,185.69,2.87]
[1762033760006,4.84847568,185.77,185.71,2.87]
[1762033760215,4.13768758,185.76,185.71,2.87]
[1762033760508,4.13768758,185.75,185.71,2.87]
[1762033760807,2.08847568,185.77,185.71,2.87]
[1762033761008,6.89765141,185.76,185.71,2.87]
[1762033761206,4.13765141,185.75,185.71,2.87]
[1762033761409,2.76,185.76,185.71,2.87]
[1762033761606,4.13781782,185.75,185.71,2.87]
[1762033761808,2.76,185.76,185.71,2.87]
[1762033762009,4.13781791,185.75,185.71,2.87]
[1762033762210,2.76,185.76,185.71,2.87]
[1762033762405,4.1379915,185.75,185.71,2.87]
[1762033762604,2.76,185.76,185.71,2.87]
[1762033762805,4.13812671,185.75,185.71,2.87]
[1762033763113,2.76,185.76,185.71,2.87]
[1762033763310,4.13814923,185.75,185.71,2.87]
[1762033763512,2.76,185.76,185.71,2.87]
[1762033763713,4.13844332,185.75,185.71,2.87]
[1762033763907,2.76,185.76,185.71,2.87]
[1762033764107,4.13840038,185.75,185.71,2.87]
[1762033764407,2.76,185.76,185.71,2.87]
[1762033764607,4.13876917,185.75,185.71,2.87]
[1762033764807,2.76,185.76,185.71,2.87]
[1762033765007,4.1387799,185.75,185.71,2.87]
[1762033765310,4.13923636,185.74,185.71,2.87]
[1762033765510,2.76,185.76,185.71,2.87]
[1762033765716,4.13923636,185.75,185.71,2.87]
[1762033765911,4.13923636,185.74,185.71,2.87]
[1762033766112,2.76,185.76,185.71,2.87]
[1762033766413,4.13924709,185.75,185.71,2.87]
[1762033766612,4.13924709,185.74,185.71,2.87]
[1762033766812,2.76,185.76,185.71,2.87]
[1762033767015,4.13980224,185.75,185.71,2.87]
[1762033767214,4.13980224,185.74,185.71,2.87]
[1762033767516,2.76,185.76,185.71,2.87]
[1762033767816,4.1404215,185.75,185.71,2.87]
[1762033768108,4.1404215,185.74,185.71,2.87]
[1762033768305,2.76,185.76,185.71,2.87]
[1762033768506,4.14114328,185.75,185.71,2.87]
[1762033768705,4.14114328,185.74,185.71,2.87]
[1762033768908,2.76,185.76,185.71,2.87]
[1762033769213,4.14116474,185.75,185.71,2.87]
[1762033769512,4.14116474,185.74,185.71,2.87]
[1762033769713,2.76,185.76,185.71,2.87]
[1762033770014,4.14194371,185.75,185.71,2.87]
[1762033770212,4.14194371,185.74,185.71,2.87]
[1762033770413,4.14194371,185.73,185.71,2.87]
[1762033770715,2.81,185.75,185.71,2.87]
[1762033770914,4.20156332,185.74,185.71,2.87]
[1762033771114,4.20156332,185.73,185.71,2.87]
[1762033771315,2.81,185.75,185.71,2.87]
[1762033771516,4.20256644,185.74,185.71,2.87]
[1762033771815,4.20256644,185.73,185.71,2.87]
[1762033772017,2.81,185.75,185.71,2.87]
[1762033772314,4.20256644,185.74,185.72,2.95]
[1762033772509,4.20256644,185.73,185.72,2.95]
[1762033779121,4.20256644,185.73,185.72,7.12359581]
[1762033779322,4.20256644,185.73,185.72,2.95]
[1762033779525,4.20256644,185.73,185.72,7.12359581]
[1762033779918,4.20256644,185.73,185.72,2.95]
[1762033780118,4.20256644,185.73,185.72,7.12359581]
[1762033781930,6.89256644,185.73,185.72,7.12359581]
[1762033782727,4.20256644,185.73,185.72,7.12359581]
[1762033783415,6.89256644,185.73,185.72,4.17359581]
[1762033792540,2.69,185.72,185.69,76.1]
[1762033792735,2.69,185.7,185.69,76.1]
[1762033792936,6.89256644,185.7,185.69,83.26069369]
[1762033793137,4.20256644,185.7,185.69,83.26069369]
[1762033795026,6.89256644,185.7,185.69,83.26069369]
[1762033796732,4.20256644,185.7,185.69,83.26069369]
[1762033799331,4.20256644,185.7,185.69,88.27549607]
[1762033800243,2.69,185.82,185.72,2.96]
[1762033800444,2.69,185.82,185.74,2.96]
[1762033800742,2.69,185.81,185.75,7.16069369]
[1762033801044,2.69,185.81,185.76,7.16069369]
[1762033801233,2.69,185.81,185.77,4.20069369]
[1762033801434,2.69,185.81,185.77,79.04]
[1762033801744,2.69,185.81,185.77,76.08]
[1762033803348,2.69,185.81,185.78,4.15432299]
[1762033803546,2.69,185.81,185.77,76.08]
[1762033803846,2.69,185.81,185.77,79.04]
[1762033804050,2.69,185.81,185.78,2.96]
[1762033804649,2.69,185.81,185.77,76.08]
[1762033804944,2.69,185.81,185.77,79.04]
[1762033805348,2.69,185.81,185.78,2.96]
[1762033806651,2.69,185.81,185.79,4.15255439]
[1762033806951,2.69,185.81,185.78,2.96]
[1762033807150,2.69,185.81,185.79,4.15160754]
[1762033807345,2.69,185.81,185.78,2.96]
[1762033809350,2.79,185.78,185.69,2.84]
[1762033809555,2.79,185.78,185.7,4.15143433]
[1762033809745,2.79,185.78,185.69,2.84]
[1762033810050,2.79,185.75,185.7,4.15143756]
[1762033810242,2.79,185.75,185.69,2.84]
[1762033810441,2.79,185.75,185.7,4.15105633]
[1762033810641,2.79,185.75,185.69,2.84]
[1762033810842,2.79,185.75,185.7,4.15111216]
[1762033811044,2.79,185.75,185.69,2.84]
[1762033811240,2.79,185.75,185.7,6.99071176]
[1762033811543,2.79,185.75,185.7,2.84]
[1762033812452,2.79,185.73,185.67,2.84]
[1762033812655,2.79,185.73,185.68,4.15047198]
[1762033812950,2.79,185.73,185.69,4.15047198]
[1762033813251,2.79,185.73,185.67,2.84]
[1762033813453,2.79,185.73,185.69,2.84]
[1762033813655,2.79,185.73,185.7,6.99012932]
[1762033813851,2.79,185.73,185.7,2.84]
[1762033822158,2.79,185.73,185.69,2.9]
[1762033824559,2.79,185.73,185.7,2.9]
[1762033836569,2.79,185.73,185.68,6.92249486]
[1762033836766,2.79,185.73,185.69,2.8]
[1762033840474,2.79,185.73,185.67,4.12217897]
[1762033840677,2.79,185.73,185.68,4.12217897]
[1762033840879,2.79,185.73,185.66,2.8]
[1762033841068,2.79,185.73,185.67,6.92209789]
[1762033841268,2.79,185.73,185.69,2.8]
[1762033852089,2.79,185.73,185.7,4.12991282]
[1762033852299,2.79,185.73,185.7,2.8]
[1762033853485,2.79,185.73,185.67,2.8]
[1762033853689,2.79,185.73,185.69,2.8]
[1762033853985,2.79,185.73,185.7,6.93335238]
[1762033854291,2.79,185.73,185.64,6.69600684]
[1762033854292,2.88,185.72,185.71,4.13335238]
[1762033855885,5.20223981,185.72,185.71,4.13335238]
[1762033859988,2.32223981,185.72,185.71,6.93335238]
[1762033871904,2.81,185.83,185.72,2.68]
[1762033872097,2.08857522,185.85,185.75,2.68]
[1762033872297,2.08857522,185.85,185.77,2.68]
[1762033872495,2.08857522,185.85,185.79,2.68]
[1762033872807,2.08857522,185.85,185.81,2.68]
[1762033873009,6.93287522,185.87,185.81,2.68]
[1762033873209,7.6546,185.85,185.81,2.68]
[1762033873407,2.81,185.84,185.81,2.68]
[1762033874411,6.93317522,185.85,185.81,2.68]
[1762033879113,2.08857522,185.85,185.81,2.68]
[1762033883508,4.98857522,185.85,185.81,2.68]
[1762033884022,2.30047448,185.84,185.81,2.68]
[1762033884221,2.30047448,185.83,185.81,2.68]
[1762033884420,2.30047448,185.82,185.81,2.68]
[1762033886119,2.08857522,185.85,185.81,2.68]
[1762033886325,2.29879371,185.84,185.81,2.68]
[1762033886515,2.29879371,185.83,185.81,2.68]
[1762033886824,2.08857522,185.85,185.81,2.68]
[1762033887125,2.29891984,185.84,185.81,2.68]
[1762033887424,2.08857522,185.85,185.81,2.68]
[1762033887425,2.29891984,185.83,185.81,2.68]
[1762033887722,2.08857522,185.85,185.81,2.68]
[1762033887923,2.29842673,185.84,185.81,2.68]
[1762033888122,2.29842673,185.83,185.81,2.68]
[1762033888418,2.08857522,185.85,185.81,2.68]
[1762033888627,2.29808693,185.84,185.81,2.68]
[1762033888817,2.29808693,185.83,185.81,2.68]
[1762033889125,2.9,185.87,185.81,2.68]
[1762033889423,2.29784126,185.86,185.81,2.68]
[1762033889623,2.29784126,185.85,185.81,2.68]
[1762033889823,2.29784126,185.84,185.81,2.68]
[1762033890025,2.29784126,185.83,185.81,2.68]
[1762033890212,2.08857522,185.88,185.81,2.68]
[1762033890415,6.35396832,185.87,185.81,2.68]
[1762033890617,6.35396832,185.86,185.81,2.68]
[1762033890816,6.35396832,185.85,185.81,2.68]
[1762033891017,6.35396832,185.84,185.81,2.68]
[1762033891314,6.35396832,185.83,185.81,2.68]
[1762033891514,4.0563425,185.82,185.81,2.68]
[1762033896431,2.08857522,185.88,185.81,2.68]
[1762033896731,6.35258045,185.87,185.81,2.68]
[1762033896931,6.35258045,185.86,185.82,2.79]
[1762033897230,4.05552021,185.85,185.82,2.79]
[1762033897431,4.98857522,185.91,185.82,2.79]
[1762033897730,6.35221595,185.9,185.82,2.79]
[1762033897929,6.35221595,185.89,185.82,2.79]
[1762033898123,4.98857522,185.91,185.82,2.79]
[1762033898124,6.35221595,185.88,185.82,2.79]
[1762033898324,6.35221595,185.87,185.82,2.79]
[1762033898532,4.05474287,185.86,185.82,2.79]
[1762033898720,4.05474287,185.85,185.82,2.79]
[1762033898918,4.98857522,185.91,185.83,4.8449]
[1762033899120,6.35161077,185.9,185.84,2.79]
[1762033899323,6.35161077,185.89,185.84,2.79]
[1762033899618,6.35161077,185.88,185.84,2.79]
[1762033899821,6.35161077,185.87,185.84,2.79]
[1762033900017,4.05435445,185.86,185.84,2.79]
[1762033900232,4.05435445,185.85,185.84,2.79]
[1762033911242,4.05435445,185.85,185.84,79.03]
[1762033912446,6.35380876,185.85,185.84,2.79]
[1762033912747,6.35380876,185.85,185.84,79.01]
[1762033912943,9.19380876,185.85,185.81,2.79]
[1762033913142,6.35380876,185.84,185.82,79.01]
[1762033913346,6.35380876,185.83,185.82,79.01]
[1762033914147,6.35380876,185.83,185.82,83.10471803]
[1762033915248,6.35380876,185.83,185.82,83.12471803]
[1762033918246,6.35380876,185.83,185.82,79.03]
[1762033920056,4.05435445,185.83,185.82,79.03]
[1762033920248,6.36316612,185.83,185.82,79.03]
[1762033920445,2.30881167,185.83,185.82,79.03]
[1762033925252,2.84,185.85,185.83,2.79]
[1762033925448,2.30993652,185.84,185.83,2.79]
[1762033926664,2.30993652,185.84,185.83,78.95]
[1762033926861,2.30993652,185.84,185.83,2.79]
[1762033927161,2.30993652,185.84,185.83,78.95]
[1762033930567,2.84,185.85,185.83,78.95]
[1762033930867,2.3112205,185.84,185.83,78.95]
[1762033931667,4.9812205,185.84,185.83,78.95]
[1762033932169,4.9812205,185.84,185.83,78.91]
[1762033932567,4.9812205,185.84,185.83,2.79]
[1762033932770,4.9812205,185.84,185.83,78.91]
[1762033934475,2.3112205,185.84,185.83,78.91]
[1762033936778,2.3112205,185.84,185.83,83.01774256]
[1762033936973,2.3112205,185.84,185.83,80.22774256]
[1762033937175,4.9812205,185.84,185.83,80.22774256]
[1762033937379,4.9812205,185.84,185.83,80.20774256]
[1762033937672,4.9812205,185.84,185.83,4.10774256]
[1762033937979,4.9812205,185.84,185.83,80.20774256]
[1762033945793,4.9812205,185.84,185.83,76.1]
[1762033949784,2.91,185.83,185.8,2.87]
[1762033949990,5.2212205,185.82,185.81,4.11072179]
[1762033950178,2.91,185.81,185.8,76.1]
[1762033950487,9.32450637,185.81,185.8,76.1]
[1762033951990,2.91,185.8,185.76,2.88]
[1762033952190,9.32450637,185.79,185.77,83.08962241]
[1762033952492,6.41450637,185.78,185.77,78.98]
[1762033952685,9.32450637,185.78,185.77,80.2090132]
[1762033953484,9.32450637,185.78,185.77,4.1090132]
[1762033953687,6.41450637,185.78,185.74,2.88]
[1762033953886,3.25890033,185.85,185.75,4.10849071]
[1762033953887,2.91,185.76,185.75,4.10849071]
[1762033954091,9.32450637,185.76,185.75,4.10849071]
[1762033954592,2.91,185.75,185.73,79.0]
[1762033954889,6.41450637,185.74,185.73,79.0]
[1762033955088,6.41450637,185.74,185.73,83.10741671]
[1762033955291,9.32450637,185.74,185.73,80.22741671]
[1762033957693,9.32450637,185.74,185.73,76.12]
[1762033958084,6.41450637,185.74,185.73,78.93]
[1762033958589,2.84,185.73,185.7,2.81]
[1762033958790,6.41450637,185.72,185.71,83.03202318]
[1762033960797,6.41450637,185.72,185.71,6.91202318]
[1762033960997,6.41450637,185.72,185.71,78.93]
[1762033968601,6.41450637,185.72,185.71,2.81]
[1762033968791,6.41450637,185.72,185.71,78.95]
[1762033969493,9.25450637,185.72,185.69,2.81]
[1762033969704,6.94328587,185.71,185.69,2.81]
[1762033969904,4.10328587,185.7,185.69,31.83]
[1762033972909,4.10328587,185.7,185.69,2.81]
[1762033974308,2.84,185.79,185.69,2.81]
[1762033974503,6.38597325,185.78,185.69,2.81]
[1762033974702,6.38597325,185.77,185.69,2.81]
[1762033974903,6.38597325,185.76,185.69,2.81]
[1762033975099,6.38597325,185.75,185.69,2.81]
[1762033975302,6.38597325,185.74,185.7,2.81]
[1762033975502,2.84,185.79,185.71,2.81]
[1762033975711,2.84,185.79,185.72,2.81]
[1762033975712,6.38748507,185.78,185.72,2.81]
[1762033975912,6.38748507,185.77,185.74,2.81]
[1762033976108,6.38748507,185.76,185.74,2.81]
[1762033976306,4.8461,185.8,185.74,2.81]
[1762033976307,4.07812106,185.75,185.74,2.81]
[1762033980415,2.84,185.81,185.74,2.81]
[1762033980617,2.31130143,185.8,185.74,2.81]
[1762033980915,2.31130143,185.79,185.74,2.81]
[1762033981114,2.84,185.81,185.74,2.81]
[1762033981115,2.31130143,185.78,185.74,2.81]
[1762033981317,2.31130143,185.77,185.74,2.81]
[1762033981616,2.84,185.81,185.74,2.81]
[1762033981815,2.31193584,185.8,185.74,2.81]
[1762033982016,2.31193584,185.79,185.74,2.81]
[1762033982215,2.31193584,185.78,185.74,2.81]
[1762033982416,2.31193584,185.77,185.74,2.81]
[1762033982610,2.31193584,185.76,185.74,2.81]
[1762033982811,2.84,185.81,185.74,2.81]
[1762033983018,2.31439851,185.8,185.74,2.81]
[1762033983217,2.84,185.78,185.74,2.81]
[1762033983409,2.31439851,185.77,185.74,2.81]
[1762033983610,2.31439851,185.76,185.74,2.81]
[1762033983811,2.84,185.78,185.74,2.81]
[1762033984010,2.31490869,185.77,185.74,2.81]
[1762033984309,2.31490869,185.76,185.74,2.81]
[1762033984508,2.84,185.78,185.74,2.81]
[1762033984704,2.3153826,185.77,185.74,2.81]
[1762033984906,2.3153826,185.76,185.74,2.81]
[1762033985207,2.84,185.78,185.75,2.81]
[1762033985414,2.31588373,185.77,185.75,2.81]
[1762033985614,2.31588373,185.76,185.75,2.81]
[1762033990215,2.31588373,185.76,185.75,6.90563044]